bitfinex/quotes_SOLUSD_20250212
["timestamp","ask_amount","ask_price","bid_price","bid_amount"]
[1739379604558,0.03,195.26,195.11,1.07569862]
[1739379604740,20.0,195.24,195.12,5.125]
[1739379605067,20.0,195.24,195.12,6.2010686]
[1739379605259,25.306808,195.24,195.17,25.306808]
[1739379605467,25.306808,195.21,195.14,25.432298]
[1739379605634,0.03,195.26,195.11,25.306808]
[1739379605635,25.306808,195.18,195.11,25.306808]
[1739379605840,1.0,195.2,195.06,11.2209]
[1739379606057,20.0,195.17,195.06,6.0945]
[1739379606438,23.0744,195.16,195.06,6.0945]
[1739379606842,3.0744,195.16,195.07,0.12549]
[1739379607063,3.0738,195.2,195.14,25.306808]
[1739379607274,3.073,195.25,195.19,25.306808]
[1739379607440,0.03,195.26,195.21,25.306808]
[1739379607634,0.03,195.26,195.16,0.12549]
[1739379607635,0.03,195.26,195.22,25.306808]
[1739379608057,0.03,195.26,195.19,0.12549]
[1739379608058,0.03,195.26,195.23,31.910708]
[1739379608249,0.03,195.26,195.25,25.306808]
[1739379608662,0.03,195.26,195.25,25.683278]
[1739379608978,11.05818371,195.37,195.36,24.806808]
[1739379609344,19.83303866,195.43,195.37,0.12549]
[1739379609660,3.0703,195.42,195.32,1.07479673]
[1739379609839,3.0703,195.42,195.28,1.07475945]
[1739379610040,40.95326386,195.36,195.29,40.95326386]
[1739379610541,40.95326386,195.38,195.3,40.95326386]
[1739379610739,40.95326386,195.36,195.28,40.95326386]
[1739379610963,40.95326386,195.35,195.28,0.12549]
[1739379611138,40.95326386,195.33,195.26,41.20424386]
[1739379611345,40.95326386,195.32,195.26,0.12549]
[1739379611664,40.95326386,195.31,195.24,40.95326386]
[1739379611862,13.41184853,195.38,195.22,40.95326386]
[1739379611863,40.95326386,195.29,195.22,40.95326386]
[1739379612062,40.95326386,195.32,195.24,40.95326386]
[1739379612274,10.7477,195.39,195.27,40.95326386]
[1739379612461,40.95326386,195.34,195.26,41.07875386]
[1739379612773,40.95326386,195.35,195.28,0.12549]
[1739379612958,40.95326386,195.4,195.33,40.95326386]
[1739379613156,40.95326386,195.4,195.3,0.12549]
[1739379613157,40.95326386,195.4,195.32,40.95326386]
[1739379613363,40.95326386,195.37,195.29,40.95326386]
[1739379613576,3.0705,195.41,195.3,0.12549]
[1739379613577,40.95326386,195.36,195.3,0.12549]
[1739379613873,40.95326386,195.35,195.27,40.95326386]
[1739379614058,40.95326386,195.32,195.25,40.95326386]
[1739379614266,40.95326386,195.33,195.25,40.95326386]
[1739379614463,44.02496386,195.33,195.26,40.95326386]
[1739379614658,40.95326386,195.35,195.28,0.12549]
[1739379614873,3.0714,195.35,195.29,40.95326386]
[1739379615058,44.02436386,195.37,195.29,40.95326386]
[1739379615375,3.0711,195.37,195.3,40.95326386]
[1739379615555,0.03,195.32,195.31,40.95326386]
[1739379615756,0.03,195.32,195.29,41.07875386]
[1739379615950,0.03,195.32,195.3,40.95326386]
[1739379616269,0.03,195.32,195.31,40.95326386]
[1739379616463,0.03,195.32,195.31,41.32973386]
[1739379617553,0.03,195.32,195.31,42.40460877]
[1739379617759,0.03,195.32,195.31,41.32973386]
[1739379617993,0.03,195.32,195.29,47.27416386]
[1739379618170,0.03,195.32,195.27,40.95326386]
[1739379618482,2.07792581,195.32,195.26,40.95326386]
[1739379618797,0.03,195.32,195.29,0.25098]
[1739379619092,0.03,195.32,195.29,0.12549]
[1739379619257,0.03,195.32,195.24,5.1216]
[1739379619458,0.03,195.32,195.22,6.2088]
[1739379619679,40.95326386,195.26,195.19,40.95326386]
[1739379619862,40.95326386,195.21,195.15,5.124]
[1739379620063,40.95326386,195.25,195.18,39.95326386]
[1739379620279,3.0723,195.29,195.2,0.12549]
[1739379620477,3.0723,195.29,195.17,0.12549]
[1739379620657,3.0723,195.29,195.16,1.07556801]
[1739379620974,3.0723,195.29,195.15,6.19967768]
[1739379621178,40.95326386,195.23,195.15,46.07726386]
[1739379621362,40.95326386,195.25,195.17,40.95326386]
[1739379621564,40.95326386,195.26,195.19,41.20424386]
[1739379621759,40.95326386,195.27,195.21,0.12549]
[1739379622064,10.7531,195.29,195.15,6.19950656]
[1739379622286,13.41184853,195.28,195.15,5.124]
[1739379622477,13.41184853,195.28,195.11,5.125]
[1739379622478,14.41184853,195.28,195.11,5.125]
[1739379622782,13.41184853,195.24,195.07,1.07599946]
[1739379622981,10.7531,195.29,195.11,0.37647]
[1739379623180,40.95326386,195.25,195.19,0.12549]
[1739379623380,40.95326386,195.27,195.19,41.07875386]
[1739379623678,40.95326386,195.23,195.16,40.95326386]
[1739379623879,40.95326386,195.22,195.15,40.95326386]
[1739379624084,3.0734,195.22,195.13,5.1245]
[1739379624260,40.95326386,195.18,195.11,46.07826386]
[1739379624465,40.95326386,195.15,195.09,5.1257]
[1739379624665,40.95326386,195.11,195.05,5.1266]
[1739379624887,40.95326386,195.11,195.04,47.46216386]
[1739379625064,1.6006,195.19,195.05,0.25098]
[1739379625387,1.6006,195.19,195.04,12.71232426]
[1739379625388,1.6006,195.19,195.08,0.12549]
[1739379625567,1.6006,195.19,195.1,0.12549]
[1739379625882,10.757,195.22,195.12,0.12549]
[1739379625883,3.0734,195.22,195.12,0.12549]
[1739379626064,40.95326386,195.22,195.16,0.12549]
[1739379626384,2.03258658,195.22,195.18,0.12549]
[1739379626681,40.95326386,195.31,195.21,41.07875386]
[1739379626868,40.98326386,195.32,195.24,40.95326386]
[1739379627187,40.98326386,195.32,195.25,1.45173133]
[1739379627365,40.98326386,195.32,195.25,0.37647]
[1739379627565,44.05506386,195.32,195.25,0.37647]
[1739379627883,40.95326386,195.3,195.25,0.37647]
[1739379628069,40.95326386,195.3,195.19,6.5874]
[1739379628070,40.95326386,195.26,195.19,48.61595326]
[1739379628276,40.95326386,195.23,195.19,6.5874]
[1739379628577,3.0722,195.3,195.2,0.12549]
[1739379628780,40.95326386,195.29,195.22,0.37647]
[1739379628980,5.12190101,195.32,195.25,0.12549]
[1739379629181,43.00326487,195.32,195.25,1.20075005]
[1739379629373,2.05000101,195.32,195.27,0.12549]
[1739379629687,2.05000101,195.32,195.28,41.20424386]
[1739379629871,2.05000101,195.32,195.2,40.95326386]
[1739379629872,40.95326386,195.29,195.21,42.0282465]
[1739379630086,40.95326386,195.27,195.19,53.73922557]
[1739379630391,40.95326386,195.25,195.2,0.37647]
[1739379630589,3.072,195.31,195.21,0.37647]
[1739379630770,40.95326386,195.3,195.24,0.12549]
[1739379630975,40.95326386,195.28,195.24,0.12549]
[1739379631170,40.95326386,195.27,195.2,42.02858103]
[1739379631469,40.95326386,195.26,195.19,53.73916176]
[1739379631776,40.95326386,195.27,195.2,0.37647]
[1739379631977,40.95326386,195.24,195.2,0.12549]
[1739379632283,40.95326386,195.21,195.15,5.124]
[1739379632466,3.0725,195.28,195.18,41.14175386]
[1739379632670,2.07197147,195.28,195.19,6.57523948]
[1739379632992,3.072,195.31,195.19,5.24869]
[1739379633189,3.072,195.31,195.2,1.45203475]
[1739379633190,5.16995618,195.31,195.2,1.45203475]
[1739379633373,5.16995618,195.31,195.2,0.37647]
[1739379633576,40.95326386,195.27,195.2,5.49937]
[1739379633767,40.95326386,195.29,195.21,40.95326386]
[1739379633971,40.95326386,195.27,195.2,46.32714386]
[1739379634167,40.95326386,195.27,195.21,0.12549]
[1739379634376,40.95326386,195.28,195.21,0.12549]
[1739379635290,40.95326386,195.26,195.18,41.01626386]
[1739379635599,40.95326386,195.23,195.18,0.063]
[1739379635777,40.95326386,195.24,195.18,0.18849]
[1739379635978,40.95326386,195.24,195.18,0.063]
[1739379636284,20.0,195.26,195.18,0.063]
[1739379636493,40.95326386,195.19,195.09,5.1256]
[1739379636692,40.95326386,195.11,195.07,5.1261]
[1739379636886,40.95326386,195.1,195.07,5.1261]
[1739379637087,40.95326386,195.08,195.03,16.57000128]
[1739379637285,10.759,195.19,195.03,16.57000128]
[1739379637286,40.95326386,195.05,195.03,16.57000128]
[1739379637499,40.95326386,195.1,195.02,40.95326386]
[1739379637702,3.0739,195.19,195.09,40.95326386]
[1739379637919,10.7587,195.19,195.03,1.07669719]
[1739379638125,1.6547,195.18,195.0,19.02486583]
[1739379638414,14.53733853,195.15,194.96,1.07651135]
[1739379638587,20.0,195.16,194.98,5.1286]
[1739379638896,40.95326386,195.0,194.95,1.07663489]
[1739379639082,40.95326386,195.1,194.96,0.37647]
[1739379639083,40.95326386,195.02,194.96,0.37647]
[1739379639393,48.64196386,195.1,194.93,7.63675303]
[1739379639394,40.95326386,194.97,194.93,7.63675303]
[1739379639571,24.7217,195.03,194.92,0.063]
[1739379639772,12.4128,195.03,194.92,0.063]
[1739379640176,20.0,195.0,194.92,0.063]
[1739379640590,13.41184853,194.99,194.92,0.063]
[1739379640792,21.0,195.0,194.92,0.063]
[1739379640793,40.95326386,194.93,194.92,0.063]
[1739379640990,40.95326386,194.96,194.92,0.063]
[1739379641291,1.6452,195.03,194.92,0.18849]
[1739379641903,1.6452,195.03,194.92,0.063]
[1739379642196,3.076,195.06,194.94,0.37647]
[1739379642499,20.0,195.09,194.96,0.12549]
[1739379642678,40.95326386,195.05,194.99,0.12549]
[1739379642884,40.95326386,195.05,194.98,40.95326386]
[1739379642885,40.95326386,195.0,194.93,40.95326386]
[1739379643078,40.95326386,194.99,194.92,0.063]
[1739379643291,20.0,195.01,194.92,0.063]
[1739379643492,1.0,195.0,194.92,0.063]
[1739379643701,13.41184853,194.98,194.92,0.063]
[1739379643873,1.0,195.01,194.92,0.063]
[1739379644073,1.0,195.0,194.92,0.063]
[1739379644276,14.41184853,194.99,194.92,0.063]
[1739379644481,40.95326386,194.93,194.92,0.063]
[1739379645207,1.5232,194.95,194.92,0.063]
[1739379645417,40.95326386,194.98,194.92,0.063]
[1739379645687,40.95326386,194.93,194.92,0.063]
[1739379646185,40.95326386,194.95,194.92,0.063]
[1739379646975,40.95326386,194.93,194.92,0.063]
[1739379649685,44.03126386,194.93,194.92,0.063]
[1739379649904,44.03126386,194.93,194.82,0.063]
[1739379649905,1.5326,194.89,194.82,0.063]
[1739379650116,1.5326,194.89,194.79,0.063]
[1739379650117,20.0,194.8,194.72,0.063]
[1739379650525,1.0,194.84,194.72,0.063]
[1739379650723,20.0,194.83,194.72,0.063]
[1739379651108,40.95326386,194.81,194.74,41.01626386]
[1739379651402,3.0794,194.84,194.74,0.063]
[1739379651403,40.95326386,194.79,194.74,0.063]
[1739379651603,40.95326386,194.77,194.74,0.063]
[1739379652123,40.95326386,194.77,194.76,2.83086728]
[1739379652651,55.49060239,194.77,194.76,2.83086728]
[1739379652933,61.95326386,194.75,194.74,0.063]
[1739379653103,75.36511239,194.75,194.74,0.063]
[1739379653307,64.03406386,194.75,194.74,0.063]
[1739379653501,60.95326386,194.75,194.74,0.063]
[1739379653703,40.95326386,194.75,194.74,0.063]
[1739379653905,3.0803,194.79,194.74,0.063]
[1739379654502,40.95326386,194.77,194.74,0.063]
[1739379654729,3.0792,194.85,194.74,0.063]
[1739379655034,40.95326386,194.79,194.74,0.063]
[1739379655336,0.12549,194.88,194.74,0.063]
[1739379655337,1.0,195.09,194.89,0.12549]
[1739379655497,1.0,195.09,194.86,1.0]
[1739379655701,1.0,195.1,194.87,1.07718048]
[1739379655934,1.0,195.05,194.87,1.07718048]
[1739379656096,1.0,195.07,194.87,1.07718048]
[1739379656297,13.913808,195.15,195.01,1.0]
[1739379656522,16.41,195.25,195.11,40.95326386]
[1739379656523,40.95326386,195.19,195.11,40.95326386]
[1739379656813,4.7007,195.21,195.13,40.95326386]
[1739379656814,40.95326386,195.21,195.13,40.95326386]
[1739379657019,40.95326386,195.25,195.17,40.95326386]
[1739379657215,2.04382235,195.26,195.21,40.95326386]
[1739379657440,40.95326386,195.22,195.15,40.95326386]
[1739379657648,0.03,195.27,195.05,6.1268]
[1739379657649,3.0728,195.26,195.05,6.1268]
[1739379657813,3.0728,195.26,195.07,0.12549]
[1739379658017,40.95326386,195.16,195.07,0.12549]
[1739379658216,40.95326386,195.18,195.1,40.95326386]
[1739379658649,40.95326386,195.16,195.09,40.95326386]
[1739379658856,40.95326386,195.15,195.08,40.95326386]
[1739379659025,40.95326386,195.17,195.1,40.95326386]
[1739379659225,13.41184853,195.21,195.09,40.95326386]
[1739379659420,13.41184853,195.21,195.07,0.12549]
[1739379659635,3.5856,195.22,195.08,0.37647]
[1739379659839,0.03,195.27,195.1,0.37647]
[1739379660021,0.03,195.27,195.14,0.37647]
[1739379660220,0.03,195.27,195.17,0.37647]
[1739379660424,0.03,195.27,195.17,1.45206826]
[1739379660628,0.03,195.27,195.25,40.95326386]
[1739379660851,0.03,195.27,195.24,0.12549]
[1739379661028,0.03,195.27,195.22,40.95326386]
[1739379661233,0.03,195.27,195.21,40.95326386]
[1739379661449,40.95326386,195.26,195.19,40.95326386]
[1739379661660,40.98326386,195.27,195.2,40.95326386]
[1739379661838,40.95326386,195.26,195.19,40.95326386]
[1739379662034,40.95326386,195.26,195.17,40.95326386]
[1739379662249,0.03,195.27,195.18,1.0759726]
[1739379662557,0.03,195.27,195.22,0.37647]
[1739379662760,0.03,195.27,195.24,0.37647]
[1739379663342,0.03,195.27,195.23,1.07516272]
[1739379663343,0.03,195.27,195.23,40.95326386]
[1739379663547,0.03,195.27,195.26,41.32973386]
[1739379664174,0.03,195.37,195.26,42.4046865]
[1739379664378,0.03,195.37,195.31,41.32973386]
[1739379664544,0.03,195.37,195.31,42.40447445]
[1739379664958,0.03,195.37,195.31,1.45121059]
[1739379665177,40.95326386,195.33,195.26,40.95326386]
[1739379665539,40.95326386,195.34,195.27,42.40484656]
[1739379665746,0.03,195.37,195.27,0.37647]
[1739379665747,40.95326386,195.33,195.27,0.37647]
[1739379666153,0.03,195.37,195.31,41.32973386]
[1739379667055,0.03,195.37,195.31,41.02973386]
[1739379667280,0.03,195.37,195.31,42.10439535]
[1739379667478,0.03,195.37,195.31,47.22439535]
[1739379667969,0.03,195.37,195.31,42.10439535]
[1739379668660,0.03,195.37,195.34,20.0]
[1739379668976,0.03,195.37,195.36,40.95326386]
[1739379669153,0.03,195.37,195.34,40.95326386]
[1739379669472,0.03,195.37,195.36,0.37647]
[1739379669974,0.03,195.37,195.36,41.32973386]
[1739379670271,0.03,195.37,195.34,40.95326386]
[1739379670472,0.03,195.37,195.35,40.95326386]
[1739379670657,0.03,195.37,195.36,42.4043763]
[1739379671466,0.03,195.37,195.36,47.5230763]
[1739379671864,0.03,195.37,195.36,42.4043763]
[1739379672776,0.03,195.38,195.37,7.62036]
[1739379673076,0.03,195.38,195.37,102.93873625]
[1739379673278,0.03,195.46,195.45,41.32973386]
[1739379673663,0.03,195.46,195.45,42.40372084]
[1739379674954,0.03,195.47,195.45,0.37647]
[1739379675153,0.03,195.47,195.46,42.15287766]
[1739379675455,40.95326386,195.64,195.49,1.0]
[1739379675655,40.95326386,195.62,195.5,2.07351141]
[1739379675860,40.95326386,195.62,195.55,40.95326386]
[1739379676063,40.95326386,195.57,195.5,42.02677527]
[1739379676269,40.95326386,195.6,195.46,0.12549]
[1739379676581,40.95326386,195.6,195.39,1.0]
[1739379676582,20.0,195.55,195.42,1.07403605]
[1739379676756,1.0,195.59,195.36,1.0]
[1739379676757,3.5798,195.54,195.4,1.07426489]
[1739379677096,3.578,195.64,195.46,0.25098]
[1739379677296,3.578,195.64,195.47,1.07375291]
[1739379677591,40.95326386,195.52,195.45,1.19929946]
[1739379677756,40.95326386,195.47,195.41,1.07412024]
[1739379678257,40.95326386,195.49,195.44,0.12549]
[1739379678457,40.95326386,195.46,195.38,40.95326386]
[1739379678676,13.41184853,195.49,195.33,22.715152]
[1739379678873,13.41184853,195.49,195.33,21.64071897]
[1739379678874,20.0,195.46,195.33,21.64071897]
[1739379679175,1.0,195.45,195.33,21.64071897]
[1739379679484,12.5332,195.48,195.33,21.64071897]
[1739379679688,40.95326386,195.39,195.36,0.25098]
[1739379679857,12.5332,195.48,195.33,63.66877797]
[1739379680198,3.5796,195.55,195.39,0.37647]
[1739379680357,3.5796,195.55,195.41,2.25098]
[1739379680553,3.5781,195.63,195.42,2.07388788]
[1739379680810,23.5787,195.6,195.45,5.36708]
[1739379680961,3.5787,195.6,195.45,5.36708]
[1739379681294,1.0,195.54,195.35,6.19287167]
[1739379681508,40.95326386,195.4,195.34,13.19825808]
[1739379681684,40.95326386,195.38,195.34,13.19825808]
[1739379682012,40.95326386,195.38,195.35,0.12549]
[1739379682197,40.95326386,195.36,195.27,40.95326386]
[1739379682369,40.95326386,195.31,195.23,101.85326386]
[1739379682571,40.95326386,195.35,195.27,40.95326386]
[1739379682811,40.95326386,195.41,195.33,40.95326386]
[1739379683109,3.5798,195.54,195.36,0.12549]
[1739379683271,3.5798,195.54,195.37,1.07433595]
[1739379683471,3.5798,195.54,195.38,0.25098]
[1739379683783,3.5798,195.54,195.39,1.07429174]
[1739379684102,40.95326386,195.47,195.39,40.95326386]
[1739379684303,40.95326386,195.49,195.4,1.32535284]
[1739379684503,40.95326386,195.51,195.44,0.25098]
[1739379684725,3.5798,195.54,195.48,0.25098]
[1739379684880,3.5795,195.56,195.5,0.25098]
[1739379685192,3.5792,195.58,195.52,0.25098]
[1739379685700,40.95326386,195.57,195.5,0.25098]
[1739379686011,40.95326386,195.57,195.5,1.3247531]
[1739379686192,17.9179,195.67,195.54,0.25098]
[1739379686193,40.95326386,195.59,195.54,0.25098]
[1739379686390,40.95326386,195.61,195.54,0.25098]
[1739379686900,40.95326386,195.59,195.51,42.02684438]
[1739379687101,40.95326386,195.61,195.54,0.25098]
[1739379687304,40.95326386,195.63,195.56,0.25098]
[1739379687518,40.95326386,195.61,195.56,0.12549]
[1739379687680,40.95326386,195.59,195.53,1.07365886]
[1739379688003,44.53156386,195.63,195.55,41.20424386]
[1739379688186,44.53116386,195.65,195.57,0.25098]
[1739379688391,40.95326386,195.61,195.53,46.06746386]
[1739379688611,40.95326386,195.6,195.54,1.07354474]
[1739379688902,3.5779,195.65,195.51,40.95326386]
[1739379688903,40.95326386,195.58,195.51,40.95326386]
[1739379689108,40.95326386,195.55,195.47,46.06896386]
[1739379689284,40.95326386,195.55,195.49,0.25098]
[1739379689491,40.95326386,195.59,195.51,41.20424386]
[1739379689684,40.95326386,195.57,195.52,0.25098]
[1739379689993,44.53236386,195.58,195.52,0.25098]
[1739379690182,44.53236386,195.58,195.5,40.95326386]
[1739379690183,40.95326386,195.62,195.55,0.25098]
[1739379690383,40.95326386,195.62,195.55,42.27779472]
[1739379690595,40.95326386,195.64,195.58,0.25098]
[1739379690809,44.53116386,195.65,195.58,1.32430054]
[1739379691002,40.95326386,195.62,195.58,0.12549]
[1739379691183,40.95326386,195.61,195.55,1.07350724]
[1739379691704,40.95326386,195.64,195.56,41.20424386]
[1739379692021,40.95326386,195.64,195.57,1.07337139]
[1739379692186,40.95326386,195.64,195.57,42.02663525]
[1739379692388,3.5776,195.66,195.57,42.02663525]
[1739379692389,40.95326386,195.65,195.58,41.20424386]
[1739379692593,44.53086386,195.66,195.6,0.25098]
[1739379692801,40.95326386,195.66,195.62,0.25098]
[1739379693002,40.95326386,195.64,195.56,40.95326386]
[1739379693204,40.95326386,195.62,195.57,1.0733914]
[1739379693406,40.95326386,195.62,195.54,40.95326386]
[1739379693707,40.95326386,195.6,195.56,0.12549]
[1739379694009,3.5777,195.66,195.6,0.12549]
[1739379694519,40.95326386,195.64,195.56,42.02666037]
[1739379694684,40.95326386,195.66,195.6,0.25098]
[1739379694888,3.6074,195.67,195.6,42.27744031]
[1739379695105,40.95326386,195.65,195.6,1.32417645]
[1739379695411,40.95326386,195.66,195.6,0.25098]
[1739379695612,3.6074,195.67,195.62,0.12549]
[1739379695922,0.03,195.67,195.63,0.12549]
[1739379696128,40.95326386,195.65,195.57,42.02639949]
[1739379696313,40.95326386,195.61,195.55,1.07338935]
[1739379696520,3.6075,195.67,195.56,0.12549]
[1739379696821,40.95326386,195.63,195.56,41.20424386]
[1739379697184,40.95326386,195.64,195.58,0.12549]
[1739379697427,0.03,195.67,195.63,41.20424386]
[1739379697629,0.03,195.67,195.65,0.12549]
[1739379698124,0.03,195.67,195.63,0.12549]
[1739379698323,40.98326386,195.67,195.6,42.0264028]
[1739379698507,40.98326386,195.67,195.6,40.95326386]
[1739379698699,40.98326386,195.67,195.61,0.25098]
[1739379699320,0.03,195.67,195.64,41.20424386]
[1739379699501,0.03,195.67,195.66,0.12549]
[1739379699995,0.03,195.67,195.66,0.25098]
[1739379700203,0.03,195.67,195.66,0.12549]
[1739379700597,0.03,195.67,195.65,0.25098]
[1739379700908,0.03,195.67,195.65,0.12549]
[1739379701094,0.03,195.67,195.64,0.25098]
[1739379701291,0.03,195.67,195.64,0.12549]
[1739379701517,40.95326386,195.65,195.58,40.95326386]
[1739379701688,40.95326386,195.65,195.59,0.25098]
[1739379701890,40.95326386,195.63,195.59,0.12549]
[1739379702111,23.17509595,195.63,195.59,0.12549]
[1739379702312,40.95326386,195.61,195.54,5.1138]
[1739379702523,40.95326386,195.61,195.54,1.0735673]
[1739379702709,40.95326386,195.65,195.58,41.20424386]
[1739379702891,3.5776,195.66,195.58,0.25098]
[1739379702892,40.95326386,195.64,195.58,0.25098]
[1739379703090,3.5776,195.66,195.58,0.25098]
[1739379703301,3.5776,195.66,195.54,1.07337809]
[1739379703815,0.03,195.67,195.57,0.25098]
[1739379703993,0.03,195.67,195.56,6.18680182]
[1739379704302,0.03,195.67,195.6,0.12549]
[1739379704303,40.95326386,195.66,195.6,0.12549]
[1739379704887,40.98326386,195.67,195.61,0.12549]
[1739379705127,0.03,195.67,195.62,41.07875386]
[1739379705417,40.98326386,195.67,195.62,0.12549]
[1739379705721,40.95326386,195.65,195.59,1.07316677]
[1739379705923,40.95326386,195.65,195.6,0.25098]
[1739379706418,0.03,195.67,195.61,42.0266608]
[1739379706719,0.03,195.67,195.62,13.91380853]
[1739379706919,0.03,195.67,195.64,0.25098]
[1739379707292,3.6075,195.67,195.64,0.12549]
[1739379707491,40.95326386,195.65,195.57,40.95326386]
[1739379707720,40.95326386,195.64,195.57,40.95326386]
[1739379707910,40.95326386,195.62,195.55,40.95326386]
[1739379708100,44.53126386,195.64,195.57,40.95326386]
[1739379708306,44.53126386,195.64,195.58,0.25098]
[1739379708506,3.578,195.64,195.59,0.25098]
[1739379708821,40.95326386,195.63,195.59,0.25098]
[1739379709111,40.95326386,195.6,195.53,54.15237804]
[1739379709318,40.95326386,195.6,195.55,0.25098]
[1739379709513,44.53176386,195.61,195.55,0.25098]
[1739379709717,40.95326386,195.6,195.55,0.25098]
[1739379709912,40.95326386,195.6,195.55,0.12549]
[1739379710115,44.53176386,195.61,195.55,0.12549]
[1739379710615,40.95326386,195.59,195.55,0.12549]
[1739379710799,40.95326386,195.6,195.55,0.12549]
[1739379711110,40.95326386,195.59,195.54,0.12549]
[1739379711309,40.95326386,195.55,195.48,40.95326386]
[1739379711719,40.95326386,195.55,195.48,41.07875386]
[1739379711919,40.95326386,195.5,195.46,0.063]
[1739379712335,40.95326386,195.47,195.46,0.063]
[1739379712633,6.1943,195.54,195.46,0.063]
[1739379713009,12.53,195.53,195.46,0.063]
[1739379713715,40.95326386,195.52,195.46,0.063]
[1739379713925,3.58,195.53,195.48,0.12549]
[1739379714143,40.95326386,195.54,195.48,1.19943136]
[1739379714439,40.95326386,195.54,195.49,0.12549]
[1739379714607,44.53306386,195.55,195.49,0.12549]
[1739379715013,7.4472,195.61,195.5,0.12549]
[1739379715014,40.95326386,195.56,195.5,0.12549]
[1739379715229,40.95326386,195.53,195.46,41.01626386]
[1739379715436,40.95326386,195.5,195.46,0.063]
[1739379715733,40.95326386,195.48,195.46,0.063]
[1739379716029,21.0,195.54,195.46,0.063]
[1739379716343,40.95326386,195.47,195.46,0.063]
[1739379716723,40.95326386,195.47,195.4,0.08272072]
[1739379716930,40.95326386,195.46,195.4,0.08272072]
[1739379717130,3.5814,195.45,195.4,0.08272072]
[1739379717332,44.53466386,195.45,195.39,0.12549]
[1739379717932,40.95326386,195.43,195.36,42.02775363]
[1739379718140,40.95326386,195.43,195.36,40.95326386]
[1739379718349,40.95326386,195.4,195.34,0.063]
[1739379718559,40.95326386,195.39,195.34,0.063]
[1739379719256,44.53586386,195.39,195.34,0.063]
[1739379719665,40.95326386,195.38,195.34,0.063]
[1739379719956,40.95326386,195.35,195.34,0.063]
[1739379720539,3.5826,195.39,195.34,0.063]
[1739379720741,3.5818,195.43,195.34,0.063]
[1739379720945,5.1971,195.49,195.36,0.25098]
[1739379721257,5.1971,195.49,195.38,0.25098]
[1739379721439,5.1971,195.49,195.39,1.07439189]
[1739379721640,40.95326386,195.49,195.43,0.12549]
[1739379722161,40.95326386,195.49,195.42,42.15295123]
[1739379722162,40.95326386,195.54,195.48,0.25098]
[1739379722332,5.1106,195.56,195.41,1.07399641]
[1739379722527,5.1106,195.56,195.42,0.25098]
[1739379722758,40.95326386,195.52,195.46,0.12549]
[1739379723057,40.95326386,195.5,195.44,5.24189]
[1739379723258,40.95326386,195.47,195.41,5.1174]
[1739379723567,40.95326386,195.42,195.34,5.182]
[1739379723736,26.5688,195.47,195.34,5.182]
[1739379724079,13.53733853,195.54,195.35,1.20018312]
[1739379724080,7.4696,195.54,195.35,1.20018312]
[1739379724294,1.0,195.5,195.34,6.25639459]
[1739379724462,1.0,195.46,195.34,0.063]
[1739379724646,1.0,195.48,195.34,0.063]
[1739379724647,40.95326386,195.35,195.34,0.063]
[1739379725153,40.95326386,195.37,195.34,0.063]
[1739379725366,40.95326386,195.35,195.34,0.063]
[1739379725883,20.0,195.32,195.26,0.063]
[1739379726088,1.0,195.3,195.26,0.063]
[1739379726289,1.0,195.27,195.26,0.063]
[1739379726583,40.95326386,195.16,195.14,7.69975303]
[1739379726876,40.95326386,195.15,195.14,7.69975303]
[1739379727853,40.95326386,195.2,195.14,7.69975303]
[1739379728161,40.95326386,195.24,195.16,40.95326386]
[1739379728487,40.95326386,195.26,195.18,40.95326386]
[1739379728789,40.95326386,195.28,195.21,0.12549]
[1739379728949,40.95326386,195.28,195.21,41.07875386]
[1739379729151,40.95326386,195.29,195.22,0.12549]
[1739379729347,40.95326386,195.33,195.26,0.12549]
[1739379729547,40.95326386,195.37,195.3,0.12549]
[1739379729785,40.95326386,195.41,195.33,40.95326386]
[1739379729995,8.9529,195.47,195.36,0.12549]
[1739379729996,40.95326386,195.43,195.36,0.12549]
[1739379730157,40.95326386,195.44,195.37,40.95326386]